fUSD/lending_fUSD_20260217
["ID","MTS","AMOUNT","RATE_DAILY","PERIOD"]
[405865461,1771371041639,-1000.0,0.00012721,2]
[405865462,1771371041648,-1000.0,0.00012721,2]
[405865463,1771371041657,-1000.0,0.00012721,2]
[405865464,1771371041667,-500.0,0.00012721,2]
[405865465,1771371041676,-1000.0,0.00012721,2]
[405865466,1771371041685,-1013.76878479,0.00012721,2]
[405865467,1771371041696,-1000.0,0.00012721,2]
[405865468,1771371041705,-1000.0,0.00012721,2]
[405865469,1771371041715,-432.93855102,0.00012721,2]
[405865470,1771371041983,-1000.0,0.00012721,2]
[405865471,1771371041993,-200.0,0.00012721,2]
[405865472,1771371042002,-200.0,0.00012721,2]
[405865473,1771371042012,-150.0,0.00012721,2]
[405865474,1771371042022,-150.0,0.00012721,2]
[405865475,1771371042030,-150.0,0.00012721,2]
[405865476,1771371042040,-150.0,0.00012721,2]
[405865477,1771371042050,-150.0,0.00012721,2]
[405865478,1771371042059,-150.0,0.00012721,2]
[405865479,1771371042069,-150.0,0.00012721,2]
[405865480,1771371042078,-150.0,0.00012721,2]
[405865481,1771371042088,-150.0,0.00012721,2]
[405865482,1771371042097,-150.0,0.00012721,2]
[405865483,1771371042106,-150.0,0.00012721,2]
[405865484,1771371042115,-500.0,0.00012721,2]
[405865485,1771371042125,-295.69274942,0.00012721,2]
[405865486,1771371042135,-150.0,0.00012721,2]
[405865487,1771371042144,-500.0,0.00012721,2]
[405865488,1771371042153,-150.0,0.00012721,2]
[405865489,1771371042162,-150.0,0.00012721,2]
[405865490,1771371042172,-200.36674187,0.00012721,2]
[405865491,1771371042181,-200.18645604,0.00012721,2]
[405865492,1771371042190,-500.0,0.00012721,2]
[405865493,1771371042202,-150.0,0.00012721,2]
[405865494,1771371042212,-500.0,0.00012721,2]
[405865495,1771371042221,-1009.2,0.0001274,2]
[405865496,1771371042230,-3620.0,0.00012753,2]
[405865497,1771371042240,-200.0,0.00012776,2]
[405865498,1771371042249,-200.0,0.00012776,2]
[405865499,1771371042259,-200.0,0.00012776,2]
[405865500,1771371042268,-200.0,0.00012776,2]
[405865501,1771371042277,-200.0,0.00012776,2]
[405865502,1771371042286,-200.0,0.00012776,2]
[405865503,1771371042295,-200.0,0.00012776,2]
[405865504,1771371042304,-296.0,0.00012776,2]
[405865505,1771371042313,-200.0,0.00012776,2]
[405865506,1771371042322,-201.09695119,0.00012776,2]
[405865507,1771371042331,-500.0,0.00012776,2]
[405865508,1771371042341,-200.0,0.00012776,2]
[405865509,1771371042350,-150.0,0.00012776,2]
[405865510,1771371042360,-500.0,0.00012776,2]
[405865511,1771371042369,-200.89245722,0.00012776,2]
[405865512,1771371042379,-150.0,0.00012776,2]
[405865513,1771371042388,-500.0,0.00012776,2]
[405865515,1771371042397,-150.0,0.00012776,2]
[405865516,1771371042406,-500.0,0.00012776,2]
[405865518,1771371042419,-500.0,0.0001283,2]
[405865519,1771371042428,-202.12850518,0.0001283,2]
[405865520,1771371042438,-500.0,0.0001283,2]
[405865521,1771371042447,-270.15883999,0.0001283,2]
[405865522,1771371042456,-500.0,0.0001283,2]
[405865523,1771371042465,-199.65624143,0.0001283,2]
[405865524,1771371042474,-500.0,0.0001283,2]
[405865525,1771371042483,-500.0,0.00012885,2]
[405865526,1771371042493,-500.0,0.00012885,2]
[405865527,1771371042504,-500.0,0.00012885,2]
[405865528,1771371042513,-500.0,0.00012885,2]
[405865529,1771371042523,-119222.30808405,0.000129,2]
[405865530,1771371042531,-500.33776257,0.0001294,2]
[405865532,1771371042543,-630.25617345,0.0001294,2]
[405865534,1771371042553,-382.17209928,0.0001294,2]
[405865537,1771371042563,-500.0,0.0001294,2]
[405865540,1771371042572,-500.0,0.00012995,2]
[405865543,1771371042583,-5623.26156693,0.00013,2]
[405865545,1771371042592,-1009.20002581,0.00013014,2]
[405865547,1771371042601,-500.0,0.0001305,2]
[405865549,1771371042611,-5362.79805645,0.0001305,2]
[405865550,1771371042620,-500.0,0.00013104,2]
[405865552,1771371042629,-500.0,0.00013159,2]
[405865554,1771371042638,-5530.0,0.000132,3]
[405865556,1771371042647,-500.0,0.00013214,2]
[405865558,1771371042656,-744.95097778,0.00013268,2]
[405865559,1771371042666,-1500.0,0.00013268,2]
[405865560,1771371042676,-1500.0,0.00013268,2]
[405865561,1771371042685,-503.8182606,0.00013268,2]
[405865562,1771371042694,-1500.0,0.00013268,2]
[405865563,1771371042703,-1500.0,0.00013268,2]
[405865564,1771371042712,-1500.0,0.00013268,2]
[405865565,1771371042721,-226.6191256,0.00013268,2]
[405865566,1771371042731,-1500.0,0.00013268,2]
[405865567,1771371042740,-1500.0,0.00013268,2]
[405865568,1771371042750,-224.65460803,0.00013269,2]
[405865569,1771371042759,-3360.30504385,0.00013344,2]
[405865570,1771371042768,-3240.0,0.00013425,2]
[405865571,1771371042777,-1000.0,0.000135,2]
[405865572,1771371042787,-64549.94771307,0.00013676,2]
[405865573,1771371042796,-13879.99631745,0.00013676,2]
[405865574,1771371042805,-528.4390448,0.00013698,2]
[405865575,1771371042814,-500.0,0.00013698,2]
[405865576,1771371042823,-500.0,0.00013698,2]
[405865577,1771371042832,-500.0,0.00013698,2]
[405865578,1771371042841,-448.74,0.00013698,2]
[405865579,1771371042851,-885.56,0.00013698,2]
[405865580,1771371042860,-885.56,0.00013698,2]
[405865581,1771371042869,-885.56,0.00013698,2]
[405865582,1771371042878,-885.56,0.00013698,2]
[405865583,1771371042887,-885.56,0.00013698,2]
[405865584,1771371042896,-885.56,0.00013698,2]
[405865585,1771371042905,-885.56,0.00013698,2]
[405865586,1771371042915,-885.56,0.00013698,2]
[405865587,1771371042924,-885.56,0.00013698,2]
[405865588,1771371042934,-885.56,0.00013698,2]
[405865589,1771371042943,-885.56,0.00013698,2]
[405865590,1771371042952,-885.56,0.00013698,2]
[405865591,1771371042962,-885.56,0.00013698,2]
[405865592,1771371042971,-885.56,0.00013698,2]
[405865593,1771371042980,-885.56,0.00013698,2]
[405865594,1771371042990,-885.56,0.00013698,2]
[405865595,1771371042999,-885.56,0.00013698,2]
[405865596,1771371043009,-885.56,0.00013698,2]
[405865597,1771371043018,-885.56,0.00013698,2]
[405865598,1771371043027,-885.56,0.00013698,2]
[405865599,1771371043037,-885.56,0.00013698,2]
[405865600,1771371043046,-885.56,0.00013698,2]
[405865601,1771371043055,-885.56,0.00013698,2]
[405865602,1771371043063,-885.62,0.00013698,2]
[405865603,1771371043073,-500.0,0.00013698,2]
[405865604,1771371043082,-500.0,0.00013698,2]
[405865605,1771371043091,-500.0,0.00013698,2]
[405865606,1771371043100,-500.0,0.00013698,2]
[405865607,1771371043110,-586.00467181,0.00013698,2]
[405865608,1771371043120,-500.0,0.00013698,2]
[405865609,1771371043129,-500.0,0.00013698,2]
[405865610,1771371043138,-500.0,0.00013698,2]
[405865611,1771371043148,-500.0,0.00013698,2]
[405865612,1771371043157,-500.0,0.00013698,2]
[405865613,1771371043166,-500.0,0.00013698,2]
[405865614,1771371043176,-500.0,0.00013698,2]
[405865615,1771371043185,-500.0,0.00013698,2]
[405865616,1771371043195,-500.0,0.00013698,2]
[405865617,1771371043204,-500.0,0.00013698,2]
[405865618,1771371043214,-500.0,0.00013698,2]
[405865619,1771371043222,-600.82615766,0.00013698,2]
[405865620,1771371043232,-2052.7,0.00013698,2]
[405865621,1771371043241,-2052.7,0.00013698,2]
[405865622,1771371043251,-2052.7,0.00013698,2]
[405865623,1771371043260,-2052.7,0.00013698,2]
[405865624,1771371043269,-2052.7,0.00013698,2]
[405865625,1771371043278,-2052.7,0.00013698,2]
[405865626,1771371043287,-2052.7,0.00013698,2]
[405865627,1771371043296,-2052.7,0.00013698,2]
[405865628,1771371043305,-2052.7,0.00013698,2]
[405865629,1771371043315,-2052.7,0.00013698,2]
[405865630,1771371043324,-2052.7,0.00013698,2]
[405865631,1771371043336,-2052.7,0.00013698,2]
[405865632,1771371043346,-2052.7,0.00013698,2]
[405865633,1771371043355,-2052.7,0.00013698,2]
[405865634,1771371043365,-2052.7,0.00013698,2]
[405865635,1771371043374,-2052.7,0.00013698,2]
[405865636,1771371043383,-2052.7,0.00013698,2]
[405865637,1771371043393,-2052.7,0.00013698,2]
[405865638,1771371043402,-2052.7,0.00013698,2]
[405865639,1771371043411,-2052.7,0.00013698,2]
[405865640,1771371043420,-2052.7,0.00013698,2]
[405865641,1771371043431,-2052.7,0.00013698,2]
[405865642,1771371043440,-2052.7,0.00013698,2]
[405865643,1771371043449,-2052.77678348,0.00013698,2]
[405865644,1771371043462,-500.0,0.00013698,2]
[405865645,1771371043471,-500.0,0.00013698,2]
[405865646,1771371043480,-500.0,0.00013698,2]
[405865647,1771371043489,-500.0,0.00013698,2]
[405865648,1771371043501,-172.09485914,0.00013698,2]
[405865650,1771371043511,-568.38,0.00013698,2]
[405865652,1771371043521,-568.38,0.00013698,2]
[405865653,1771371043531,-568.38,0.00013698,2]
[405865654,1771371043540,-568.38,0.00013698,2]
[405865655,1771371043550,-568.38,0.00013698,2]
[405865656,1771371043559,-568.38,0.00013698,2]
[405865657,1771371043568,-568.38,0.00013698,2]
[405865658,1771371043578,-568.38,0.00013698,2]
[405865659,1771371043587,-568.38,0.00013698,2]
[405865660,1771371043596,-568.38,0.00013698,2]
[405865661,1771371043606,-568.38,0.00013698,2]
[405865662,1771371043615,-568.38,0.00013698,2]
[405865663,1771371043625,-568.38,0.00013698,2]
[405865664,1771371043634,-568.38,0.00013698,2]
[405865665,1771371043642,-568.38,0.00013698,2]
[405865666,1771371043651,-568.38,0.00013698,2]
[405865667,1771371043660,-500.0,0.00013698,2]
[405865668,1771371043669,-500.0,0.00013698,2]
[405865669,1771371043678,-500.0,0.00013698,2]
[405865670,1771371043687,-500.0,0.00013698,2]
[405865671,1771371043696,-500.0,0.00013698,2]
[405865672,1771371043705,-500.0,0.00013698,2]
[405865673,1771371043715,-500.0,0.00013698,2]
[405865674,1771371043724,-500.0,0.00013698,2]
[405865675,1771371043733,-500.0,0.00013698,2]
[405865676,1771371043743,-500.0,0.00013698,2]
[405865677,1771371043752,-500.0,0.00013698,2]
[405865678,1771371043761,-500.0,0.00013698,2]
[405865679,1771371043770,-500.0,0.00013698,2]
[405865680,1771371043780,-584.54,0.00013698,2]
[405865681,1771371043789,-4559.05,0.00013699,2]
[405865682,1771371043800,-151.02878078,0.00013699,2]
[405865683,1771371043809,-545.12,0.000137,2]
[405865684,1771371043819,-545.12,0.000137,2]
[405865685,1771371043828,-545.12,0.000137,2]
[405865686,1771371043838,-545.12,0.000137,2]
[405865687,1771371043848,-545.12,0.000137,2]
[405865688,1771371043857,-5530.0,0.000138,5]
[405865689,1771371043866,-2000.0,0.00013816,2]
[405865690,1771371043875,-2000.0,0.00013816,2]
[405865691,1771371043884,-2000.0,0.00013816,2]
[405865692,1771371043893,-2000.0,0.00013816,2]
[405865693,1771371043903,-2000.0,0.00013816,2]
[405865694,1771371043912,-2000.0,0.00013816,2]
[405865695,1771371043922,-2000.0,0.00013816,2]
[405865696,1771371043932,-500.0,0.00013873,2]
[405865697,1771371043941,-500.0,0.00013873,2]
[405865698,1771371043950,-500.0,0.00013873,2]
[405865699,1771371043959,-500.0,0.00013873,2]
[405865700,1771371043969,-335.00019172,0.00013873,2]
[405865701,1771371043978,-500.0,0.00013873,2]
[405865702,1771371043987,-500.0,0.00013873,2]
[405865703,1771371043996,-500.0,0.00013873,2]
[405865704,1771371044006,-500.0,0.00013873,2]
[405865705,1771371044015,-500.0,0.00013873,2]
[405865706,1771371044024,-500.0,0.00013873,2]
[405865707,1771371044033,-500.0,0.00013873,2]
[405865708,1771371044043,-500.0,0.00013873,2]
[405865709,1771371044052,-500.0,0.00013873,2]
[405865710,1771371044062,-500.0,0.00013873,2]
[405865711,1771371044071,-500.0,0.00013873,2]
[405865712,1771371044081,-500.0,0.00013873,2]
[405865713,1771371044091,-163.87964352,0.00013873,2]
[405865714,1771371044100,-500.0,0.00013873,2]
[405865715,1771371044110,-500.0,0.00013873,2]
[405865716,1771371044119,-500.0,0.00013873,2]
[405865717,1771371044129,-500.0,0.00013873,2]
[405865718,1771371044139,-500.0,0.00013873,2]
[405865719,1771371044148,-501.23450591,0.00013873,2]
[405865720,1771371044158,-161.95965132,0.00013873,2]
[405865721,1771371044167,-500.29634492,0.00013873,2]
[405865722,1771371044176,-500.0,0.00013873,2]
[405865723,1771371044186,-500.0,0.00013873,2]
[405865724,1771371044195,-436.04334629,0.00013873,2]
[405865725,1771371044204,-514.27467488,0.00013873,2]
[405865726,1771371044213,-500.0,0.00013873,2]
[405865727,1771371044223,-160.29464371,0.00013873,2]
[405865728,1771371044232,-500.0,0.00013873,2]
[405865729,1771371044242,-500.0,0.00013873,2]
[405865730,1771371044251,-500.0,0.00013873,2]
[405865731,1771371044260,-597.93872342,0.00013873,2]
[405865732,1771371044270,-503.17452108,0.00013873,2]
[405865733,1771371044279,-500.0,0.00013873,2]
[405865734,1771371044289,-500.0,0.00013873,2]
[405865735,1771371044298,-500.0,0.00013873,2]
[405865736,1771371044307,-162.40112722,0.00013873,2]
[405865737,1771371044317,-161.87499248,0.00013873,2]
[405865738,1771371044326,-500.0,0.00013873,2]
[405865739,1771371044335,-500.0,0.00013873,2]
[405865740,1771371044344,-505.14943602,0.00013873,2]
[405865741,1771371044354,-500.93096914,0.00013873,2]
[405865742,1771371044363,-500.0,0.00013873,2]
[405865743,1771371044372,-500.0,0.00013873,2]
[405865744,1771371044382,-500.0,0.00013873,2]
[405865745,1771371044391,-501.14207764,0.00013873,2]
[405865746,1771371044400,-161.02829907,0.00013873,2]
[405865747,1771371044409,-569.45122683,0.00013873,2]
[405865748,1771371044419,-500.0,0.00013873,2]
[405865749,1771371044427,-285.23122629,0.00013873,2]
[405865750,1771371044437,-500.0,0.00013873,2]
[405865751,1771371044446,-500.0,0.00013873,2]
[405865752,1771371044456,-500.0,0.00013873,2]
[405865753,1771371044466,-377.76526068,0.00013873,2]
[405865754,1771371044475,-500.0,0.00013873,2]
[405865755,1771371044484,-501.43225284,0.00013873,2]
[405865756,1771371044494,-500.0,0.00013873,2]
[405865757,1771371044508,-596.47581986,0.00013947,2]
[405865758,1771371044517,-1500.0,0.00014,2]
[405865759,1771371044527,-35866.0,0.00014008,2]
[405865760,1771371044536,-653.0,0.00014027,2]
[405865761,1771371044547,-173.57638878,0.00014078,2]
[405865762,1771371044556,-160.0,0.00014078,2]
[405865763,1771371044565,-2500.0,0.00014364,2]
[405865764,1771371044575,-1464.93718194,0.00014364,2]
[405865765,1771371044584,-691.88472966,0.00014364,2]
[405865766,1771371044594,-2500.0,0.00014364,2]
[405865767,1771371044603,-2500.0,0.00014364,2]
[405865768,1771371044613,-738.87048767,0.00014364,2]
[405865769,1771371044622,-1506.4295813,0.00014364,2]
[405865770,1771371044631,-4559.05,0.00014384,2]
[405865771,1771371044641,-10349.13153648,0.0001439,2]
[405865772,1771371044651,-568.38,0.00014399,2]
[405865773,1771371044660,-500.0,0.0001442,2]
[405865774,1771371044669,-213.96435398,0.0001442,2]
[405865775,1771371044678,-1013.23,0.0001442,2]
[405865776,1771371044687,-500.0,0.0001442,2]
[405865777,1771371044697,-546.97,0.0001442,2]
[405865778,1771371044706,-500.0,0.0001442,2]
[405865779,1771371044715,-1479.1,0.0001442,2]
[405865780,1771371044725,-500.0,0.0001442,2]
[405865781,1771371044734,-1546.47,0.0001442,2]
[405865782,1771371044744,-516.5,0.0001442,2]
[405865783,1771371044753,-500.0,0.0001442,2]
[405865784,1771371044762,-500.0,0.0001442,2]
[405865785,1771371044772,-500.0,0.0001442,2]
[405865786,1771371044781,-500.0,0.0001442,2]
[405865787,1771371044791,-500.0,0.0001442,2]
[405865788,1771371044800,-500.0,0.0001442,2]
[405865789,1771371044809,-500.0,0.0001442,2]
[405865790,1771371044818,-500.0,0.0001442,2]
[405865791,1771371044828,-502.22718587,0.00014421,2]
[405865792,1771371044837,-1000.0,0.00014421,2]
[405865793,1771371044847,-1001.35605949,0.00014421,2]
[405865794,1771371044856,-1000.0,0.00014421,2]
[405865795,1771371044866,-1000.0,0.00014421,2]
[405865796,1771371044875,-1000.0,0.00014421,2]
[405865797,1771371044884,-1009.85751715,0.00014421,2]
[405865798,1771371044893,-501.86536618,0.00014421,2]
[405865799,1771371044903,-504.09468333,0.00014421,2]
[405865800,1771371044912,-1000.0,0.00014421,2]
[405865801,1771371044922,-1009.6821238,0.00014421,2]
[405865802,1771371044931,-1000.0,0.00014421,2]
[405865803,1771371044940,-1000.0,0.00014421,2]
[405865804,1771371044950,-1000.0,0.00014421,2]
[405865805,1771371044960,-504.64635869,0.00014421,2]
[405865806,1771371044968,-1002.86775924,0.00014421,2]
[405865807,1771371044978,-565.44208777,0.00014421,2]
[405865808,1771371044987,-1000.0,0.00014421,2]
[405865809,1771371044997,-1000.0,0.00014421,2]
[405865810,1771371045006,-651.60051968,0.00014421,2]
[405865811,1771371045015,-1000.0,0.00014421,2]
[405865812,1771371045025,-1000.0,0.00014421,2]
[405865813,1771371045035,-1000.0,0.00014421,2]
[405865814,1771371045043,-1000.0,0.00014421,2]
[405865815,1771371045053,-1000.0,0.00014421,2]
[405865816,1771371045062,-1000.0,0.00014421,2]
[405865817,1771371045071,-1000.0,0.00014421,2]
[405865818,1771371045081,-502.68727614,0.00014421,2]
[405865819,1771371045090,-1000.0,0.00014421,2]
[405865820,1771371045100,-1000.0,0.00014421,2]
[405865821,1771371045110,-1000.0,0.00014421,2]
[405865822,1771371045119,-1000.0,0.00014421,2]
[405865823,1771371045128,-1000.0,0.00014421,2]
[405865824,1771371045138,-1000.0,0.00014421,2]
[405865825,1771371045147,-1000.0,0.00014421,2]
[405865826,1771371045156,-895.81638304,0.00014421,2]
[405865827,1771371045166,-1000.0,0.00014421,2]
[405865828,1771371045175,-502.80271569,0.00014421,2]
[405865829,1771371045184,-1000.0,0.00014421,2]
[405865830,1771371045194,-301.18,0.00014461,2]
[405865831,1771371045203,-283.148028,0.00014628,7]
[405865832,1771371045211,-246.29,0.00014647,2]
[405865834,1771371045222,-193.83,0.00014649,2]
[405865835,1771371045231,-151.0,0.00014695,4]
[405865836,1771371045241,-64549.94771307,0.00014765,2]
[405865837,1771371045250,-13879.99631745,0.00014765,2]
[405865838,1771371045259,-3360.30504385,0.00014863,2]
[405865839,1771371045269,-176.05451458,0.000149,2]
[405865840,1771371045279,-176.05451457,0.000149,2]
[405865841,1771371045288,-3000.0,0.00014912,2]
[405865842,1771371045297,-2453.91707801,0.00014912,2]
[405865843,1771371045307,-3000.0,0.00014912,2]
[405865844,1771371045316,-568.38,0.00014968,2]
[405865845,1771371045325,-1500.0,0.00014968,2]
[405865846,1771371045334,-1000.0,0.00014968,2]
[405865847,1771371045343,-1500.0,0.00014968,2]
[405865848,1771371045353,-504.47861685,0.00014968,2]
[405865849,1771371045363,-501.69367829,0.00014968,2]
[405865850,1771371045373,-1500.0,0.00014968,2]
[405865851,1771371045382,-715.83370402,0.00014968,2]
[405865852,1771371045391,-1500.0,0.00014968,2]
[405865853,1771371045401,-1097.87159044,0.00014968,2]
[405865854,1771371045410,-1500.0,0.00014968,2]
[405865855,1771371045420,-1500.0,0.00014968,2]
[405865856,1771371045429,-395.07222913,0.00014968,2]
[405865857,1771371045438,-1500.0,0.00014968,2]
[405865858,1771371045447,-1500.0,0.00014968,2]
[405865859,1771371045456,-1512.37454404,0.00014968,2]
[405865860,1771371045466,-803.51620924,0.00014968,2]
[405865861,1771371045475,-505.49608217,0.00014968,2]
[405865862,1771371045484,-1000.0,0.00014968,2]
[405865863,1771371045494,-1500.0,0.00014968,2]
[405865864,1771371045508,-1500.0,0.00014968,2]
[405865865,1771371045517,-1500.0,0.00014968,2]
[405865866,1771371045527,-1597.03636758,0.00014968,2]
[405865867,1771371045536,-1501.26419244,0.00014968,2]
[405865868,1771371045546,-1500.0,0.00014968,2]
[405865869,1771371045556,-1500.0,0.00014968,2]
[405865870,1771371045565,-1500.0,0.00014968,2]
[405865871,1771371045575,-250.0,0.00015,2]
[405865872,1771371045584,-2055.50045313,0.00015,2]
[405865873,1771371045594,-8002.23365242,0.00015,2]
[405865874,1771371045603,-151.76907395,0.00015,2]
[405865875,1771371045612,-4559.05,0.00015068,2]
[405865876,1771371045621,-1517.64,0.000153,2]
[405865877,1771371045631,-509.61038486,0.000154,2]
[405865878,1771371045640,-3494.73225771,0.0001546,2]
[405865879,1771371045650,-2857.65528936,0.0001546,2]
[405865880,1771371045659,-500.0,0.00015516,2]
[405865881,1771371045668,-2000.0,0.00015516,2]
[405865882,1771371045678,-360.43974274,0.00015516,2]
[405865883,1771371045686,-1120.78233815,0.00015516,2]
[405865884,1771371045696,-2000.0,0.00015516,2]
[405865885,1771371045705,-2000.0,0.00015516,2]
[405865886,1771371045714,-2000.0,0.00015516,2]
[405865887,1771371045724,-1508.47777759,0.00015516,2]
[405865888,1771371045734,-386.21895781,0.00015516,2]
[405865889,1771371045744,-2000.0,0.00015516,2]
[405865890,1771371045754,-2000.0,0.00015516,2]
[405865891,1771371045763,-1929.20363046,0.00015516,2]
[405865892,1771371045772,-158.35387756,0.00015516,2]
[405865893,1771371045781,-1219.64567907,0.00015516,2]
[405865894,1771371045790,-481.75678797,0.00015648,2]
[405865895,1771371045799,-481.75678796,0.00015648,2]
[405865896,1771371045808,-4559.05,0.00015753,2]
[405865897,1771371045818,-2245.73805852,0.00015807,2]
[405865898,1771371045827,-64549.94771307,0.00015853,2]
[405865899,1771371045837,-13879.99631745,0.00015853,2]
[405865900,1771371045847,-301.18,0.00015872,2]
[405865901,1771371045856,-150.0,0.000159,2]
[405865902,1771371045865,-5000.0,0.0001596,2]
[405865903,1771371045874,-418.83903334,0.00016,2]
[405865904,1771371045884,-276.734435,0.00016,2]
[405865905,1771371045893,-481.75678797,0.00016039,2]
[405865906,1771371045902,-2500.0,0.00016064,2]
[405865907,1771371046131,-1787.66016397,0.00016064,2]
[405865908,1771371046142,-1007.7222609,0.00016064,2]
[405865909,1771371046151,-2500.0,0.00016064,2]
[405865910,1771371046161,-960.3517219,0.00016064,2]
[405865911,1771371046171,-2500.0,0.00016064,2]
[405865912,1771371046180,-2000.0,0.00016082,2]
[405865913,1771371046190,-9999.99,0.00016116,2]
[405865914,1771371046200,-246.29,0.00016192,2]
[405865915,1771371046209,-193.83,0.00016196,2]
[405865916,1771371046218,-150.0,0.000162,2]
[405865917,1771371046227,-5000.00387893,0.000162,5]
[405865918,1771371046236,-309.76116333,0.00016245,2]
[405865919,1771371046246,-557.01252391,0.00016245,2]
[405865920,1771371046255,-200.0,0.0001634,2]
[405865921,1771371046265,-500.0,0.00016356,2]
[405865922,1771371046274,-500.0,0.00016356,2]
[405865923,1771371046284,-3360.30504385,0.00016381,2]
[405865924,1771371046293,-2835.0,0.000164,2]
[405865925,1771371046303,-2789.9,0.00016438,2]
[405865926,1771371046312,-887.51,0.00016438,2]
[405865927,1771371046323,-2378.0,0.00016438,2]
[405865928,1771371046332,-151.02975848,0.00016438,2]
[405865929,1771371046341,-4559.05,0.00016438,2]
[405865930,1771371046351,-1226.92104201,0.00016444,2]
[405865931,1771371046361,-1000.0,0.00016476,7]
[405865932,1771371046371,-2378.0,0.00016493,2]
[405865933,1771371046380,-150.0,0.000165,2]
[405865934,1771371046389,-2000.0,0.000165,2]
[405865935,1771371046399,-2378.0,0.00016548,2]
[405865936,1771371046408,-1000.0,0.00016555,2]
[405865937,1771371046417,-1088.37215301,0.00016558,2]
[405865938,1771371046426,-473.31058807,0.00016566,2]
[405865939,1771371046436,-568.38,0.00016568,2]
[405865940,1771371046445,-1000.0,0.0001657,2]
[405865941,1771371046454,-1000.0,0.00016583,2]
[405865942,1771371046464,-1000.0,0.00016592,2]
[405865943,1771371046474,-361.51972399,0.000166,2]
[405865944,1771371046483,-2378.0,0.00016602,2]
[405865945,1771371046493,-1035.74923491,0.00016612,2]
[405865946,1771371046508,-457.49810709,0.00016612,2]
[405865947,1771371046517,-3000.0,0.00016612,2]
[405865948,1771371046527,-1000.0,0.00016654,2]
[405865949,1771371046536,-1000.0,0.00016654,2]
[405865950,1771371046547,-2378.0,0.00016657,2]
[405865951,1771371046556,-1000.0,0.00016659,2]
[405865952,1771371046566,-1000.0,0.0001666,2]
[405865953,1771371046576,-1000.0,0.00016662,2]
[405865954,1771371046586,-15296.93137855,0.00016677,2]
[405865955,1771371046595,-2378.0,0.00016712,2]
[405865956,1771371046604,-1000.0,0.00016717,2]
[405865957,1771371046615,-1000.0,0.00016752,2]
[405865958,1771371046624,-2378.0,0.00016767,2]
[405865959,1771371046634,-150.0,0.000168,2]
[405865960,1771371046643,-1000.0,0.00016803,2]
[405865961,1771371046652,-1000.0,0.00016806,2]
[405865962,1771371046664,-2378.0,0.00016822,2]
[405865963,1771371046673,-151.0,0.00016873,2]
[405865964,1771371046684,-2378.0,0.00016876,2]
[405865965,1771371046693,-1000.0,0.00016885,2]
[405865966,1771371046703,-1000.0,0.00016895,2]
[405865967,1771371046713,-1000.0,0.00016916,2]
[405865968,1771371046723,-1000.0,0.0001692,2]
[405865969,1771371046732,-1000.0,0.00016923,2]
[405865970,1771371046746,-1000.0,0.00016924,2]
[405865971,1771371046756,-1000.0,0.00016924,2]
[405865972,1771371046765,-1000.0,0.00016931,2]
[405865973,1771371046775,-2378.0,0.00016931,2]
[405865974,1771371046784,-64549.94771307,0.00016941,2]
[405865975,1771371046794,-13879.99631745,0.00016941,2]
[405865976,1771371046804,-1000.0,0.00016946,2]
[405865977,1771371046813,-1000.0,0.00016959,2]
[405865978,1771371046822,-1000.0,0.00016977,2]
[405865979,1771371046832,-1000.0,0.00016981,2]
[405865980,1771371046841,-200.0,0.00016983,2]